bitfinex/quotes_ETHUSD_20240707
["timestamp","ask_amount","ask_price","bid_price","bid_amount"]
[1720325110618,1.17660167,3053.5,3053.3,0.07187734]
[1720325110822,1.13396166,3053.4,3053.2,2.29266]
[1720325112319,1.81822406,3053.4,3053.2,2.29266]
[1720325112523,4.26766407,3053.3,3051.9,2.2774]
[1720325112847,0.6842624,3053.0,3052.5,2.29319]
[1720325113123,0.6842624,3052.8,3052.5,2.29319]
[1720325113410,1.13425077,3052.7,3052.5,2.29319]
[1720325115686,1.13425077,3052.7,3052.3,2.29335]
[1720325115902,0.6842624,3052.8,3052.4,2.29327]
[1720325116128,0.6842624,3052.8,3052.5,2.29317]
[1720325116129,1.13432344,3052.7,3052.5,2.29317]
[1720325116299,0.04264001,3053.0,3052.5,2.75905042]
[1720325116499,1.13425953,3052.9,3052.6,0.07230428]
[1720325116725,0.68509821,3053.0,3052.7,2.29305]
[1720325116892,1.13421814,3052.9,3052.7,2.29305]
[1720325117090,0.68509821,3053.0,3052.8,0.07222884]
[1720325117531,0.68509821,3053.0,3052.6,2.35862163]
[1720325117728,0.68509821,3053.2,3052.7,0.5195902]
[1720325117934,1.37019643,3053.5,3052.7,0.5195902]
[1720325117935,0.68509821,3053.4,3053.1,2.29267]
[1720325118136,1.13407825,3053.3,3053.1,4.58534]
[1720325118433,0.68509821,3053.4,3053.2,0.07206444]
[1720325118637,1.81915991,3053.3,3053.2,0.07206444]
[1720325118948,0.68509821,3053.3,3053.1,2.29267]
[1720325119235,0.68509821,3053.3,3053.2,0.07202767]
[1720325119421,4.10465776,3053.3,3053.2,0.07202767]
[1720325119733,4.10465776,3053.3,3052.7,2.29303]
[1720325119734,2.462,3053.2,3052.7,2.29303]
[1720325119937,0.68546918,3053.0,3052.7,2.29303]
[1720325120107,0.68546918,3052.9,3052.8,0.07213401]
[1720325120311,2.16246827,3052.9,3052.8,0.07213401]
[1720325120641,2.16246827,3052.9,3052.5,2.29319]
[1720325120795,1.81991526,3052.8,3052.5,2.29319]
[1720325121000,0.68565076,3052.8,3052.5,2.29319]
[1720325121198,0.68565076,3052.8,3052.6,0.072223]
[1720325122016,0.68565076,3052.8,3052.6,2.365343]
[1720325122214,0.68565076,3052.7,3052.6,2.365343]
[1720325122961,0.68565076,3052.8,3052.6,2.365343]
[1720325123320,0.68565076,3052.7,3052.6,2.365343]
[1720325123524,0.68565076,3052.8,3052.7,4.5861]
[1720325123752,0.68565076,3052.9,3052.7,2.29305]
[1720325123938,0.68565076,3052.9,3052.7,2.36532469]
[1720325124443,0.68565076,3052.9,3052.8,2.29297]
[1720325124738,0.68565076,3052.9,3052.8,2.36519343]
[1720325125267,0.04264001,3053.3,3052.9,2.29285]
[1720325125422,1.02930315,3053.0,3052.9,2.29285]
[1720325125854,0.68619366,3053.0,3052.9,2.29285]
[1720325126061,1.0293051,3053.0,3052.9,2.29285]
[1720325128029,1.0293051,3053.0,3052.9,2.36501442]
[1720325128666,1.37307225,3053.1,3053.0,2.29281]
[1720325128865,3.93626748,3053.1,3053.0,2.29281]
[1720325129043,3.93626748,3053.1,3053.0,2.36493671]
[1720325130167,2.56319523,3053.1,3053.0,2.36493671]
[1720325130363,2.80235184,3053.1,3053.0,2.36493671]
[1720325131472,3.93648298,3053.1,3053.0,2.36493671]
[1720325131769,1.42900519,3053.1,3053.0,2.36493671]
[1720325132079,3.93655459,3053.1,3053.0,2.44376769]
[1720325132963,1.13413067,3053.1,3053.0,2.44376769]
[1720325133360,2.16431263,3053.1,3053.0,2.44376769]
[1720325133753,1.13413067,3053.1,3053.0,2.44376769]
[1720325134051,3.93652845,3053.1,3053.0,2.44376769]
[1720325134943,2.80239778,3053.1,3053.0,2.44376769]
[1720325135247,1.7171937,3053.3,3053.1,2.29274]
[1720325135441,1.13410363,3053.2,3053.1,2.29274]
[1720325135644,1.71728846,3053.3,3053.2,0.15081711]
[1720325135862,4.28035903,3053.3,3053.1,2.4435974]
[1720325136171,2.56307057,3053.2,3053.1,2.29274]
[1720325136552,2.56307057,3053.2,3053.1,2.4435974]
[1720325136742,1.42896855,3053.2,3053.1,2.4435974]
[1720325137080,2.56307926,3053.2,3053.1,2.4435974]
[1720325138059,3.93701701,3053.2,3053.1,2.4435974]
[1720325138247,3.93701701,3053.2,3053.1,2.29274]
[1720325138448,3.93697333,3053.2,3053.1,2.29274]
[1720325138764,2.56302591,3053.2,3053.1,2.29274]
[1720325138946,3.93698673,3053.2,3053.1,2.29274]
[1720325140152,2.56302591,3053.2,3053.1,2.29274]
[1720325140673,2.56302591,3053.2,3053.1,2.4435974]
[1720325141587,2.60566592,3053.2,3053.1,0.1508574]
[1720325141880,2.87075358,3053.2,3052.9,2.29289]
[1720325142050,4.28089442,3053.1,3052.9,2.29289]
[1720325142251,2.56328298,3053.0,3052.5,2.29317]
[1720325142453,1.03052284,3052.6,3052.5,2.29317]
[1720325142680,2.50831027,3052.7,3052.3,2.29333]
[1720325142892,1.03058607,3052.5,3052.4,2.29323]
[1720325143104,1.13427981,3052.5,3052.4,2.29323]
[1720325143597,2.16484929,3052.5,3052.4,2.29323]
[1720325143813,1.13427981,3052.5,3052.4,2.29323]
[1720325144300,2.16481253,3052.5,3052.4,2.29323]
[1720325144791,1.03053272,3052.5,3052.4,2.29323]
[1720325144998,1.13433644,3052.5,3052.3,2.29333]
[1720325145168,1.03052444,3052.4,3052.1,2.29349]
[1720325145376,0.68698696,3052.2,3052.1,2.29349]
[1720325145773,1.03048044,3052.3,3052.2,2.29342]
[1720325145972,2.16488943,3052.3,3052.2,2.29342]
[1720325148091,2.46764001,3052.6,3052.2,2.29342]
[1720325148394,1.37448646,3052.3,3052.2,2.29342]
[1720325148696,2.5088834,3052.3,3052.2,2.29342]
[1720325148904,3.93822355,3052.3,3052.2,2.29342]
[1720325149225,3.93822355,3052.3,3051.4,3.0]
[1720325149226,3.16419228,3052.3,3051.9,2.29363]
[1720325149404,3.19008824,3052.2,3052.0,2.29356]
[1720325149693,2.56373709,3052.1,3052.0,2.29356]
[1720325150272,3.93835143,3052.1,3052.0,2.29356]
[1720325150681,1.37461434,3052.1,3052.0,2.29356]
[1720325150879,1.03066601,3052.1,3052.0,2.29356]
[1720325151575,1.03066601,3052.1,3052.0,7.41337639]
[1720325151801,0.68697555,3052.3,3052.2,2.29342]
[1720325151996,0.68697555,3052.4,3052.3,2.29335]
[1720325152271,0.68697555,3052.5,3052.4,4.58654]
[1720325152697,0.68697555,3052.6,3052.5,4.5864]
[1720325152894,0.68697555,3052.6,3052.5,5.05159156]
[1720325153424,0.68697555,3052.6,3052.5,7.31599156]
[1720325153722,0.68697555,3052.7,3052.6,4.58624]
[1720325154091,0.68697555,3052.7,3052.6,4.73751179]
[1720325154625,1.03066601,3052.8,3052.7,4.5861]
[1720325154626,0.68697555,3052.8,3052.7,4.5861]
[1720325154824,0.68697555,3052.8,3052.7,5.33281034]
[1720325154983,0.04264001,3053.4,3052.7,5.33281034]
[1720325154984,1.37373213,3053.2,3053.1,2.29272]
[1720325155183,1.37373213,3053.3,3053.1,2.29272]
[1720325155425,1.37373213,3053.3,3053.2,2.29267]
[1720325155594,10.0,3053.6,3053.3,2.29258]
[1720325155790,10.0,3053.6,3053.5,2.29245]
[1720325156290,10.0,3053.6,3053.5,2.44325464]
[1720325157096,10.0,3053.6,3053.5,5.2092751]
[1720325157311,10.0,3053.6,3053.5,9.7661251]
[1720325157704,10.0,3053.6,3053.5,12.7661251]
[1720325158437,10.0,3053.6,3053.5,15.0585751]
[1720325158637,5.0001,3053.6,3053.5,15.6085751]
[1720325159311,1e-05,3053.6,3053.5,15.6085751]
[1720325159711,0.6866271,3054.8,3054.7,4.5831]
[1720325159919,1.02994065,3055.0,3054.8,2.29147]
[1720325159920,0.6866271,3055.0,3054.8,2.29147]
[1720325160542,0.6866271,3055.0,3054.9,0.1496084]
[1720325160742,0.68515735,3055.0,3054.9,2.4409384]
[1720325161140,0.68515735,3055.1,3054.9,2.4409384]
[1720325161345,1.02773603,3055.1,3055.0,2.29132]
[1720325161511,1.02773603,3055.1,3055.0,0.1495121]
[1720325161713,0.24406908,3055.1,3055.0,0.1495121]
[1720325161923,0.24406908,3055.1,3054.5,2.29163]
[1720325162149,0.6846891,3054.8,3054.6,2.29162]
[1720325162349,0.6846891,3054.9,3054.7,2.29154]
[1720325162514,0.6846891,3054.9,3054.6,0.06547027]
[1720325162716,0.6846891,3055.1,3055.0,2.29132]
[1720325162912,0.6846891,3055.1,3054.8,2.29147]
[1720325163117,0.6846891,3055.1,3054.9,2.29137]
[1720325163319,0.6846891,3055.1,3055.0,2.29132]
[1720325164012,8.1646891,3055.4,3055.1,2.29125]
[1720325164218,0.6846891,3055.5,3055.1,2.29125]
[1720325164413,0.72732911,3055.6,3055.1,2.29125]
[1720325164717,2.82146291,3055.5,3053.5,2.05]
[1720325164927,2.82146291,3055.5,3051.6,1.64644163]
[1720325164928,1.5,3053.1,3051.0,2.29431]
[1720325165260,1.5,3053.1,3050.7,2.2644]
[1720325165261,2.29314,3052.6,3050.7,2.2644]
[1720325165462,2.17,3052.9,3050.7,2.2644]
[1720325165463,2.295,3051.9,3051.1,0.34219164]
[1720325165618,0.08192663,3052.2,3051.2,2.3299413]
[1720325165986,1.0259861,3052.8,3052.2,2.29342]
[1720325166115,0.68399073,3053.3,3052.5,2.29317]
[1720325166453,0.68384736,3053.5,3052.6,0.06551157]
[1720325166617,0.68384736,3053.6,3052.7,0.06550703]
[1720325166813,0.08188379,3053.8,3052.8,2.29294]
[1720325167069,0.08188379,3053.8,3052.9,0.06550037]
[1720325167233,0.08188379,3053.8,3052.6,5.29306]
[1720325167414,0.08188379,3053.8,3052.7,0.06550316]
[1720325167614,0.08188379,3053.8,3052.8,2.29294]
[1720325167921,0.68384736,3053.4,3052.9,0.12072727]
[1720325168154,0.25284588,3053.3,3052.0,2.29352]
[1720325168357,0.25284588,3053.3,3053.0,0.12068697]
[1720325168358,3.74684736,3053.2,3053.0,0.12068697]
[1720325168594,3.74684736,3053.2,3051.7,2.29375]
[1720325168958,0.68384736,3052.8,3051.8,0.1211707]
[1720325169177,0.08190177,3052.7,3051.7,2.29375]
[1720325169380,0.08190177,3052.7,3051.8,2.29369]
[1720325169581,0.08190177,3052.7,3051.8,2.523059]
[1720325169766,0.76574913,3052.7,3051.9,0.12113038]
[1720325169970,0.76574913,3052.7,3051.5,2.2939]
[1720325169971,0.68384736,3052.6,3051.5,2.2939]
[1720325170194,0.08190957,3052.5,3052.0,0.12109006]
[1720325170407,0.08190957,3052.5,3051.3,2.29408]
[1720325170697,0.68384736,3052.6,3051.4,0.18735368]
[1720325170859,0.68384736,3052.8,3051.4,0.43335905]
[1720325171059,0.76574407,3053.0,3051.4,0.43335905]
[1720325171259,0.08189671,3053.0,3051.9,2.29363]
[1720325171470,0.08189671,3053.0,3052.0,0.18709833]
[1720325171827,0.08189671,3053.0,3052.0,0.06551728]
[1720325172095,3.12372792,3053.2,3052.1,2.52935473]
[1720325172299,3.12372792,3053.2,3052.2,2.2934]
[1720325172984,0.68372792,3053.1,3052.3,0.18695929]
[1720325173273,3.12372792,3053.2,3052.3,0.06551263]
[1720325173459,0.68372792,3053.1,3052.3,0.06551263]
[1720325173656,1.8617999,3053.1,3052.3,0.06551263]
[1720325173883,1.8617999,3053.1,3052.2,2.2934]
[1720325174398,0.08189084,3053.0,3051.5,2.29394]
[1720325174716,0.08189084,3053.0,3051.1,6.74535389]
[1720325174717,0.68372792,3052.7,3051.3,2.29408]
[1720325174999,0.68372792,3052.4,3051.6,0.1222103]
[1720325175212,0.76564285,3052.3,3051.4,0.12229097]
[1720325175369,2.2659,3052.2,3051.0,2.29429]
[1720325175576,0.76567443,3052.1,3051.5,0.12225639]
[1720325175758,0.76567443,3052.1,3051.1,0.229429]
[1720325175958,0.76567443,3052.1,3051.6,0.12227749]
[1720325176154,0.76567443,3052.1,3050.7,4.71622]
[1720325176395,0.68375341,3052.0,3051.7,0.122241]
[1720325176610,0.08192612,3051.9,3050.8,1.14615739]
[1720325176968,0.76567953,3051.9,3050.9,0.12256372]
[1720325177185,0.76567953,3051.9,3050.7,4.71622]
[1720325177397,0.08192612,3051.9,3051.0,0.12252337]
[1720325177712,0.76567953,3051.9,3050.8,2.41707407]
[1720325178008,0.76523539,3051.9,3051.1,0.12248302]
[1720325178306,0.76523539,3051.9,3050.9,0.12256372]
[1720325178307,2.47277993,3051.8,3050.9,0.12256372]
[1720325178608,2.97733927,3051.4,3050.1,2.29498]
[1720325178897,0.68330927,3051.8,3050.6,2.29462]
[1720325179120,2.52192962,3052.0,3050.7,0.2950057]
[1720325179403,2.52192962,3052.0,3051.2,2.29417]
[1720325179404,2.44,3052.0,3051.2,2.29417]
[1720325179565,2.44,3052.0,3051.3,2.523507]
[1720325179762,2.44,3052.0,3051.4,0.06553185]
[1720325179979,2.17,3052.3,3051.4,0.06553185]
[1720325180209,2.69112355,3052.8,3052.0,2.29357]
[1720325180367,2.94920927,3053.2,3052.1,2.35899658]
[1720325180672,0.08189574,3053.1,3052.1,2.93835825]
[1720325181289,0.08189574,3053.1,3052.1,2.82425324]
[1720325181615,0.08189574,3053.1,3052.2,0.0655166]
[1720325182312,0.08189192,3053.2,3052.1,2.75868666]
[1720325182602,0.08189192,3053.2,3052.3,0.11402438]
[1720325182806,0.08189192,3053.2,3052.4,0.06551296]
[1720325183308,0.08189192,3053.2,3052.0,2.29357]
[1720325184097,0.08189192,3053.2,3052.1,2.40760501]
[1720325185418,2.29304,3052.8,3052.1,0.11410501]
[1720325185708,0.08191029,3052.7,3051.3,2.523507]
[1720325185866,0.08191029,3052.7,3051.4,0.06552818]
[1720325186265,0.08191029,3052.7,3051.5,0.11434697]
[1720325186461,0.08190142,3053.0,3051.7,2.2938]
[1720325186704,3.75176376,3053.1,3051.3,0.229417]
[1720325186705,1.5408952,3053.1,3052.2,2.29339]
[1720325186910,0.85821105,3053.1,3052.3,4.65221421]
[1720325187117,0.77630961,3053.1,3052.3,2.47288859]
[1720325187407,0.77630961,3053.1,3052.4,2.29327]
[1720325187579,0.77630961,3053.1,3052.5,0.06551297]
[1720325187782,0.77630961,3053.1,3052.5,0.17945672]
[1720325188113,0.77630961,3053.1,3052.5,0.11394375]
[1720325188269,0.77630961,3053.1,3052.4,2.35876266]
[1720325188607,0.77630961,3053.1,3052.5,0.17945585]
[1720325190071,0.08189129,3053.0,3052.5,0.11394375]
[1720325190300,0.08189129,3053.0,3052.2,2.29342]
[1720325190509,0.08189129,3053.0,3052.3,0.11388809]
[1720325190710,0.08189129,3053.2,3052.3,2.29332]
[1720325190921,0.59374971,3053.2,3052.3,2.29332]
[1720325192412,1.13435387,3053.1,3052.3,2.29328]
[1720325192715,0.0818913,3053.0,3052.3,2.29328]
[1720325192916,0.08189133,3053.1,3052.3,2.29328]
[1720325193419,0.08189133,3053.1,3052.4,2.29326]
[1720325193420,0.77015147,3053.1,3052.4,2.29326]
[1720325193567,0.08189133,3053.1,3052.4,2.29326]
[1720325193894,2.17,3053.4,3052.6,2.29311]
[1720325194206,1.21609048,3053.3,3052.6,2.29311]
[1720325194366,1.13420407,3053.2,3052.7,0.06550918]
[1720325194570,1.13420407,3053.1,3052.7,0.06550918]
[1720325194805,2.25188648,3053.4,3052.7,0.06550918]
[1720325195006,1.35937691,3053.3,3052.8,0.11368655]
[1720325195306,1.13418826,3053.2,3052.7,0.06550918]
[1720325196504,0.22518865,3053.3,3052.7,2.35854918]
[1720325196705,1.13420184,3053.1,3052.7,2.35854918]
[1720325196913,0.22518865,3053.3,3052.8,0.11363665]
[1720325197068,1.13417889,3053.2,3052.7,2.35854918]
[1720325197271,1.13414155,3053.1,3052.8,0.11363665]
[1720325197515,2.25188512,3053.4,3052.8,0.24721858]
[1720325197698,8.16268415,3054.2,3052.9,0.06549845]
[1720325197898,3.40312623,3054.3,3052.9,0.06549845]
[1720325197899,1.21584962,3054.1,3053.3,2.29257]
[1720325198108,1.1339817,3054.0,3053.4,2.47139849]
[1720325198314,0.08186645,3054.2,3053.4,2.47139849]
[1720325198509,1.37996391,3054.1,3053.4,4.76391849]
[1720325198819,0.24609665,3054.1,3053.4,4.69842531]
[1720325199318,0.08186645,3054.2,3053.5,0.06549267]
[1720325199533,0.08186584,3054.5,3053.5,2.35793267]
[1720325199729,1.13372887,3054.4,3053.5,2.47099951]
[1720325199912,2.17,3054.7,3053.9,2.29212]
[1720325200084,1.13362637,3054.6,3054.0,2.35747985]
[1720325200284,0.33854827,3054.6,3054.1,2.40475765]
[1720325200817,2.17,3054.7,3054.3,2.29184]
[1720325201322,2.17,3054.7,3054.4,0.11260085]
[1720325203292,12.17,3054.7,3054.4,0.11260085]
[1720325204912,12.17,3054.7,3054.3,2.29184]
[1720325206531,12.17,3054.7,3053.9,2.29212]
[1720325206679,1.217,3054.6,3054.4,0.11252991]
[1720325206875,1.217,3054.6,3054.3,2.29184]
[1720325207092,12.17,3054.7,3054.4,2.40429949]
[1720325207297,10.0,3054.7,3054.5,2.29169]
[1720325207494,10.0,3054.7,3054.6,0.11245706]
[1720325207716,10.0,3054.7,3054.6,2.40407706]
[1720325209080,10.0,3054.7,3054.6,4.58324]
[1720325209305,10.0,3054.7,3054.6,4.69560889]
[1720325209744,10.0,3054.7,3054.6,2.40398889]
[1720325211804,10.0,3054.7,3054.6,0.11236889]
[1720325211996,10.0,3054.7,3053.7,5.29225]
[1720325212198,10.0,3054.7,3054.6,0.11208515]
[1720325212422,10.0,3054.7,3054.4,2.29176]
[1720325212703,10.0,3054.7,3054.5,2.4038254]
[1720325215235,10.0,3054.7,3054.6,2.29162]
[1720325215560,10.0,3054.7,3054.6,2.40370515]
[1720325215929,10.0,3054.7,3054.6,2.29162]
[1720325216129,10.0,3054.7,3054.6,2.40371473]
[1720325216380,10.0,3054.7,3054.6,5.2368909]
[1720325217677,10.0,3054.7,3054.6,5.17142231]
[1720325218767,10.0,3054.7,3054.6,4.69533473]
[1720325222295,10.0,3054.7,3054.6,7.05241853]
[1720325222450,10.0,3054.7,3054.6,6.98695473]
[1720325222645,10.0,3054.7,3054.6,9.98695473]
[1720325222879,10.0,3054.7,3054.6,7.69533473]
[1720325223257,10.0,3054.7,3054.6,7.7564882]
[1720325223604,10.0,3054.7,3054.6,10.1947882]
[1720325223907,10.0,3054.7,3054.6,13.1947882]
[1720325226802,2.2511,3056.2,3054.6,11.39201473]
[1720325227013,2.33289809,3056.7,3056.0,2.29051]
[1720325227225,1.13287708,3056.6,3056.1,0.06543801]
[1720325227421,2.2511,3056.7,3056.1,0.10690034]
[1720325227706,2.2511,3056.7,3056.2,2.29036]
[1720325228093,2.2511,3056.7,3056.3,0.10681417]
[1720325228398,2.2511,3056.7,3056.2,2.29036]
[1720325228711,2.2511,3056.7,3056.4,0.106728]
[1720325229002,2.3464,3057.2,3056.6,2.2901]
[1720325229199,1.21448957,3057.1,3056.6,2.2901]
[1720325229413,2.42818098,3057.2,3056.7,0.10654037]
[1720325229703,1.13271975,3057.1,3056.6,2.2901]
[1720325229865,2.42818098,3057.2,3056.4,2.29024]
[1720325229866,0.08178099,3057.0,3056.4,2.29024]
[1720325230061,0.2509962,3057.0,3056.2,2.29042]
[1720325230265,0.2509962,3057.0,3056.5,2.39676674]
[1720325230497,0.2509962,3057.0,3056.5,2.29019]
[1720325230670,0.2509962,3057.0,3056.6,0.10653654]
[1720325231507,0.2509962,3057.0,3056.2,2.29042]
[1720325231719,0.08178476,3056.9,3056.7,0.10649634]
[1720325231863,0.08178476,3056.9,3056.1,2.29049]
[1720325232226,1.13286335,3056.8,3056.1,2.29049]
[1720325232365,0.08179281,3056.7,3056.2,0.10669736]
[1720325232565,0.08179282,3056.9,3056.2,0.10669736]
[1720325232981,1.13285007,3056.8,3055.9,2.29065]
[1720325233349,1.21469515,3056.7,3056.3,0.10665715]
[1720325233607,3.38519777,3056.6,3055.3,2.29108]
[1720325233807,1.79041183,3056.5,3056.4,0.10661694]
[1720325233981,1.79041183,3056.5,3055.0,2.4938]
[1720325234181,2.2523,3056.3,3055.0,2.29126]
[1720325234383,1.21471555,3056.2,3054.8,2.29143]
[1720325234580,1.13289777,3056.1,3054.8,2.29143]
[1720325234778,0.43233366,3056.0,3054.8,2.29143]
[1720325235110,1.13289777,3055.9,3055.1,2.29123]
[1720325235316,0.0818178,3055.8,3055.1,2.29123]
[1720325236223,0.0818178,3055.8,3054.1,2.29199]
[1720325236224,2.2523,3055.7,3054.6,0.06545425]
[1720325236511,0.08182936,3055.6,3054.7,2.29153]
[1720325236681,1.21519928,3055.6,3054.7,2.29153]
[1720325236884,1.13336992,3055.5,3054.7,2.29153]
[1720325237187,0.08182938,3055.4,3054.4,2.29175]
[1720325237390,1.13336992,3055.3,3054.6,2.29161]
[1720325237704,0.08182938,3055.4,3054.7,2.29151]
[1720325237889,0.08182938,3055.4,3054.6,2.29161]
[1720325238085,2.2523,3055.7,3054.3,2.29178]
[1720325238086,1.13337845,3055.3,3054.3,2.29178]
[1720325238282,2.29095,3055.5,3054.4,2.29177]
[1720325238283,0.08183746,3055.2,3054.4,2.29177]
[1720325239291,0.08183747,3055.4,3054.4,2.29177]
[1720325239490,1.37073739,3055.3,3054.4,2.29177]
[1720325239786,0.08183738,3055.2,3054.4,2.29177]
[1720325240601,0.08183744,3055.4,3054.4,2.29177]
[1720325240804,1.13342027,3055.3,3054.4,2.29177]
[1720325241005,0.08183739,3055.2,3054.4,2.29177]
[1720325241386,0.08183739,3055.2,3054.5,2.29169]
[1720325241602,0.08183739,3055.2,3054.5,2.35715943]
[1720325241915,2.37271659,3055.6,3054.5,2.35715943]
[1720325242218,1.59591441,3055.5,3054.5,2.35715943]
[1720325242519,0.08183659,3055.4,3054.5,2.35715943]
[1720325242677,0.54433825,3055.5,3054.8,2.2914]
[1720325242876,0.08183659,3055.5,3054.8,2.2914]
[1720325243461,0.08183659,3055.5,3054.9,0.10739841]
[1720325243734,0.08182613,3055.6,3054.9,2.39878841]
[1720325243938,1.13332464,3055.5,3054.9,2.29139]
[1720325244241,0.08182613,3055.6,3054.9,2.29139]
[1720325244533,1.36672238,3055.5,3054.7,2.29152]
[1720325244839,1.21517601,3055.4,3054.8,0.10743865]
[1720325244998,0.08182943,3055.4,3054.7,2.29154]
[1720325245193,0.08182943,3055.4,3054.9,0.10737925]
[1720325245434,0.08182943,3055.4,3054.1,3.0]
[1720325245634,1.47119758,3055.3,3055.0,0.107339]
[1720325245834,1.47119758,3055.3,3054.7,2.29153]
[1720325245835,0.3378242,3055.3,3054.7,2.29153]
[1720325246135,0.3378242,3055.3,3055.1,0.10729876]
[1720325246332,0.3378242,3055.3,3054.7,2.29153]
[1720325246633,3.29641261,3055.5,3054.9,2.29139]
[1720325246837,2.93558903,3055.7,3055.0,2.29131]
[1720325247151,2.2523,3055.7,3055.1,2.29122]
[1720325247348,2.2523,3055.7,3055.2,2.29114]
[1720325247545,0.08182252,3055.8,3055.2,2.39849814]
[1720325247697,1.13318389,3055.7,3055.2,0.10735814]
[1720325247900,0.18982954,3055.7,3054.9,2.29138]
[1720325248335,2.294,3055.5,3055.0,0.10743862]
[1720325248545,1.21518427,3055.4,3054.5,2.29164]
[1720325248752,0.08183342,3055.4,3054.5,2.29164]
[1720325248952,1.81801025,3055.3,3054.6,0.10757279]
[1720325249158,0.27181715,3055.2,3054.6,0.10757279]
[1720325249669,0.6845968,3055.3,3054.8,2.29145]
[1720325249831,0.76642972,3055.5,3054.8,2.29145]
[1720325250024,1.13332009,3055.4,3054.9,0.10746737]
[1720325250230,0.6845968,3055.4,3054.9,0.10746737]
[1720325250545,0.76642972,3055.5,3054.8,2.29145]
[1720325251981,1.21090517,3055.5,3054.8,2.29145]
[1720325252180,2.294,3055.2,3054.6,2.29161]
[1720325252328,2.9785968,3055.2,3054.9,0.10746737]
[1720325252533,0.6845968,3055.1,3054.6,2.29161]
[1720325252778,0.6845968,3055.1,3054.7,0.10754787]
[1720325252974,0.08182895,3055.0,3054.7,0.10754787]
[1720325253140,0.76642575,3055.0,3054.3,2.29182]
[1720325253341,2.3081,3054.9,3053.9,2.29212]
[1720325253547,2.3081,3054.9,3054.0,2.29206]
[1720325253548,0.76644598,3054.8,3054.0,2.29206]
[1720325253776,0.08184918,3054.7,3054.1,0.1078354]
[1720325254080,0.6845968,3054.8,3054.3,2.29178]
[1720325254239,2.9926968,3054.9,3054.3,2.29178]
[1720325254441,2.9926968,3054.9,3054.4,0.10775103]
[1720325255357,0.76643822,3054.8,3054.4,0.10775103]
[1720325255556,0.6845968,3054.7,3054.0,2.292]
[1720325255738,0.08184864,3054.6,3054.1,0.10788523]
[1720325256338,0.08184864,3054.6,3054.1,2.39986523]
[1720325256537,0.76644549,3054.7,3054.1,2.39986523]
[1720325257953,1.51669812,3054.7,3054.1,0.10788523]
[1720325258258,0.6845968,3054.6,3053.8,2.29216]
[1720325258445,0.0818557,3054.5,3054.2,0.10800405]
[1720325258649,0.0818557,3054.5,3053.8,2.29216]
[1720325258650,1.02081253,3054.5,3053.8,2.29216]
[1720325258849,1.02081253,3054.5,3054.3,0.10796379]
[1720325259159,1.02081253,3054.5,3053.5,2.29238]
[1720325259479,0.6845968,3054.1,3053.6,0.10824568]
[1720325259640,0.08187075,3054.0,3053.6,0.10824568]
[1720325259972,0.76646755,3054.0,3053.3,2.29259]
[1720325261238,1.1339088,3053.9,3053.1,2.29273]
[1720325261554,0.08187082,3053.8,3053.1,2.29273]
[1720325261883,0.08187082,3053.8,3053.2,2.40117651]
[1720325262082,0.76646762,3053.8,3053.2,2.40117651]
[1720325262343,0.76646756,3053.9,3053.2,2.40117651]
[1720325262620,2.294,3053.5,3053.2,0.10850651]
[1720325262782,0.08188409,3053.4,3052.7,2.29303]
[1720325262987,0.08188409,3053.4,3053.3,0.10496319]
[1720325263539,0.08188409,3053.4,3052.7,2.29303]
[1720325263875,0.08188409,3053.4,3052.8,2.39819795]
[1720325264209,3.1056968,3053.8,3053.1,2.29274]
[1720325264383,2.4211,3053.8,3053.1,2.35823979]
[1720325264589,2.4211,3053.8,3053.2,0.10506677]
[1720325264919,2.4211,3053.8,3053.2,2.46318656]
[1720325265585,2.4211,3053.8,3053.2,0.10506677]
[1720325265790,2.90079747,3053.8,3053.0,2.29279]
[1720325266314,2.90079747,3053.8,3053.1,2.29273]
[1720325267024,2.90079747,3053.8,3052.9,2.29289]
[1720325267319,2.90079747,3053.8,3052.3,2.29333]
[1720325267320,2.294,3053.6,3052.3,2.29333]
[1720325267491,0.08188803,3053.5,3052.3,2.29333]
[1720325267686,0.08188803,3053.5,3052.4,0.1054026]
[1720325267871,0.08188803,3053.5,3052.6,2.29311]
[1720325268277,0.08188803,3053.5,3052.7,0.10528168]
[1720325268723,2.4784,3053.4,3052.7,0.10528168]
[1720325268902,2.294,3053.2,3052.7,0.10528168]
[1720325269078,0.08189153,3053.1,3052.4,2.29326]
[1720325269275,0.08189153,3053.1,3052.8,0.10548685]
[1720325269479,0.08189153,3053.1,3052.4,2.29326]
[1720325270007,0.08189153,3053.1,3052.5,0.10560776]
[1720325270717,0.08189153,3053.1,3052.5,2.39879776]
[1720325275596,2.56029162,3053.4,3052.6,0.0655133]
[1720325275795,2.4784,3053.4,3052.8,2.29291]
[1720325276695,2.2779,3053.8,3052.8,0.06550579]
[1720325276909,2.2779,3053.8,3053.3,2.29259]
[1720325277524,2.294,3053.5,3053.4,0.10531416]
[1720325277856,2.294,3053.5,3052.1,5.29343]
[1720325277857,2.37588297,3053.5,3052.8,2.29291]
[1720325278013,2.37588297,3053.5,3053.4,0.10526812]
[1720325278208,2.37588297,3053.5,3052.8,2.29291]
[1720325278447,2.37588297,3053.5,3053.4,0.10526812]
[1720325278656,2.66000898,3053.5,3053.4,0.10526812]
[1720325278950,2.2779,3053.4,3052.6,2.29311]
[1720325279125,2.294,3052.7,3052.0,2.29355]
[1720325279329,0.08190569,3052.6,3052.0,2.29355]
[1720325281228,0.08190569,3052.6,3051.3,2.29404]
[1720325281229,4.5711,3052.5,3051.3,2.29406]
[1720325281428,2.294,3052.3,3051.4,0.06553683]
[1720325281756,4.5711,3052.5,3051.5,2.29389]
[1720325281757,0.08191872,3052.2,3051.5,2.29389]
[1720325282558,0.08192029,3052.4,3051.5,2.29389]
[1720325282757,2.2779,3052.5,3052.1,2.29349]
[1720325283060,2.2779,3052.9,3052.2,2.29341]
[1720325283360,0.08190329,3052.8,3052.2,2.29341]
[1720325283723,2.35980329,3052.9,3052.3,2.29331]
[1720325283917,2.2779,3052.9,3052.2,2.29341]
[1720325284124,2.2779,3052.9,3052.5,2.2932]
[1720325284733,2.2779,3052.9,3051.7,2.4714]
[1720325284734,0.08189748,3052.8,3051.6,2.29387]
[1720325284942,0.08189748,3052.8,3051.7,0.06552156]
[1720325285153,2.2779,3052.9,3052.5,2.29318]
[1720325285826,2.2779,3052.9,3052.6,2.29311]
[1720325286026,2.25189713,3053.1,3052.6,2.29311]